[Event "Titled Tuesday Blitz March 28 Early 2023"]
[White "Miszler, Levente"]
[Black "Bodnaruk, Anastasia"]
[WhiteFideId "763276"]
[BlackFideId "4181751"]
[WhiteElo "2176"]
[BlackElo "2310"]
[Result "0-1"]
[Round "08"]
[TimeControl "180+2"]
[Date "2023.03.28"]
[WhiteClock "0:00:02"]
[BlackClock "0:00:04"]

1. Nf3 {[%clk 0:03:00]}  Nf6 {[%clk 0:02:59]} 2. c4 {[%clk 0:03:01]}  g6 {[%clk 0:02:59]} 3. g3 {[%clk 0:03:00]}  Bg7 {[%clk 0:02:59]} 4. Bg2 {[%clk 0:03:01]}  O-O {[%clk 0:02:59]} 5. O-O {[%clk 0:03:01]}  d6 {[%clk 0:02:56]} 6. Nc3 {[%clk 0:03:02]}  Nc6 {[%clk 0:02:54]} 7. d3 {[%clk 0:03:02]}  e5 {[%clk 0:02:53]} 8. Rb1 {[%clk 0:03:03]}  a5 {[%clk 0:02:52]} 9. a3 {[%clk 0:03:02]}  Re8 {[%clk 0:02:51]} 10. e4 {[%clk 0:02:59]}  Nd4 {[%clk 0:02:42]} 11. Ne2 {[%clk 0:02:59]}  c5 {[%clk 0:02:40]} 12. Nfxd4 {[%clk 0:02:57]}  cxd4 {[%clk 0:02:38]} 13. b4 {[%clk 0:02:57]}  axb4 {[%clk 0:02:37]} 14. axb4 {[%clk 0:02:58]}  b5 {[%clk 0:02:29]} 15. c5 {[%clk 0:02:52]}  Be6 {[%clk 0:02:22]} 16. f4 {[%clk 0:02:48]}  Ba2 {[%clk 0:02:13]} 17. Rb2 {[%clk 0:02:44]}  dxc5 {[%clk 0:02:02]} 18. fxe5 {[%clk 0:02:44]}  Ng4 {[%clk 0:01:58]} 19. bxc5 {[%clk 0:02:40]}  Nxe5 {[%clk 0:01:51]} 20. Rxb5 {[%clk 0:02:33]}  Qd7 {[%clk 0:01:43]} 21. Rb4 {[%clk 0:02:26]}  Nc6 {[%clk 0:01:42]} 22. Rb6 {[%clk 0:02:25]}  Ne5 {[%clk 0:01:37]} 23. Bf4 {[%clk 0:02:16]}  Ng4 {[%clk 0:01:32]} 24. Rd6 {[%clk 0:02:09]}  Qa7 {[%clk 0:01:30]} 25. Kh1 {[%clk 0:01:58]}  Qxc5 {[%clk 0:01:28]} 26. e5 {[%clk 0:01:44]}  Nxe5 {[%clk 0:01:24]} 27. Bxe5 {[%clk 0:01:36]}  Qxe5 {[%clk 0:01:21]} 28. Rd7 {[%clk 0:01:31]}  Rab8 {[%clk 0:01:07]} 29. Nxd4 {[%clk 0:01:23]}  Rb1 {[%clk 0:01:03]} 30. Qxb1 {[%clk 0:01:09]}  Bxb1 {[%clk 0:01:02]} 31. Rxb1 {[%clk 0:01:10]}  Qe3 {[%clk 0:00:58]} 32. Bd5 {[%clk 0:01:02]}  Rf8 {[%clk 0:00:34]} 33. Nc6 {[%clk 0:00:48]}  Kh8 {[%clk 0:00:27]} 34. Rf1 {[%clk 0:00:26]}  Qxd3 {[%clk 0:00:26]} 35. Rf3 {[%clk 0:00:16]}  Qb1+ {[%clk 0:00:23]} 36. Kg2 {[%clk 0:00:16]}  f5 {[%clk 0:00:17]} 37. Nd8 {[%clk 0:00:16]}  Qb2+ {[%clk 0:00:13]} 38. Rf2 {[%clk 0:00:15]}  Qb5 {[%clk 0:00:09]} 39. Bc6 {[%clk 0:00:07]}  Qb6 {[%clk 0:00:07]} 40. Rfd2 {[%clk 0:00:04]}  Bf6 {[%clk 0:00:06]} 41. Bd5 {[%clk 0:00:01]}  Rxd8 {[%clk 0:00:05]} 42. Rxd8+ {[%clk 0:00:02]}  Bxd8 {[%clk 0:00:05]} 43. Bf3 {[%clk 0:00:02]}  Bf6 {[%clk 0:00:05]} 44. Rd7 {[%clk 0:00:02]}  g5 {[%clk 0:00:05]} 45. Rd2 {[%clk 0:00:01]}  g4 {[%clk 0:00:05]} 46. Bd5 {[%clk 0:00:02]}  Qe3 {[%clk 0:00:05]} 47. Rd1 {[%clk 0:00:02]}  Qe2+ {[%clk 0:00:04]} 0-1


[Site "https://www.chess.com"]

[Event "Titled Tuesday Blitz March 28 Early 2023"]
[White "Alex_Sahakyan2006"]
[Black "Salman, Pavel"]
[BlackFideId "24153753"]
[WhiteElo "2597"]
[BlackElo "2187"]
[Result "1-0"]
[Round "08"]
[TimeControl "180+2"]
[Date "2023.03.28"]
[WhiteClock "0:00:17"]
[BlackClock "0:00:15"]

1. Nc3 {[%clk 0:03:00]}  g6 {[%clk 0:02:59]} 2. g3 {[%clk 0:02:56]}  Bg7 {[%clk 0:02:59]} 3. Bg2 {[%clk 0:02:56]}  Nf6 {[%clk 0:02:59]} 4. Nf3 {[%clk 0:02:51]}  c6 {[%clk 0:02:59]} 5. O-O {[%clk 0:02:51]}  O-O {[%clk 0:02:59]} 6. e4 {[%clk 0:02:44]}  d6 {[%clk 0:02:59]} 7. d4 {[%clk 0:02:43]}  Nbd7 {[%clk 0:02:58]} 8. h3 {[%clk 0:02:43]}  e5 {[%clk 0:02:58]} 9. dxe5 {[%clk 0:02:29]}  dxe5 {[%clk 0:02:59]} 10. Qd6 {[%clk 0:02:28]}  Re8 {[%clk 0:02:49]} 11. Rd1 {[%clk 0:02:26]}  Qe7 {[%clk 0:02:43]} 12. Qxe7 {[%clk 0:02:23]}  Rxe7 {[%clk 0:02:44]} 13. Be3 {[%clk 0:02:23]}  b6 {[%clk 0:02:36]} 14. Bf1 {[%clk 0:02:14]}  Nf8 {[%clk 0:02:28]} 15. Nd2 {[%clk 0:02:10]}  Be6 {[%clk 0:02:04]} 16. Nc4 {[%clk 0:01:58]}  N6d7 {[%clk 0:02:05]} 17. Nd6 {[%clk 0:01:55]}  h6 {[%clk 0:01:58]} 18. a4 {[%clk 0:01:55]}  Kh7 {[%clk 0:01:54]} 19. a5 {[%clk 0:01:55]}  b5 {[%clk 0:01:53]} 20. a6 {[%clk 0:01:46]}  b4 {[%clk 0:01:45]} 21. Na4 {[%clk 0:01:41]}  f5 {[%clk 0:01:45]} 22. f3 {[%clk 0:01:33]}  b3 {[%clk 0:01:40]} 23. c3 {[%clk 0:01:31]}  h5 {[%clk 0:01:25]} 24. Nc5 {[%clk 0:01:26]}  Nxc5 {[%clk 0:01:25]} 25. Bxc5 {[%clk 0:01:26]}  Rd7 {[%clk 0:01:22]} 26. Nb7 {[%clk 0:01:20]}  f4 {[%clk 0:01:11]} 27. g4 {[%clk 0:01:16]}  hxg4 {[%clk 0:01:10]} 28. hxg4 {[%clk 0:01:17]}  g5 {[%clk 0:01:08]} 29. Kf2 {[%clk 0:01:15]}  Kg6 {[%clk 0:01:07]} 30. Be2 {[%clk 0:01:13]}  Rxd1 {[%clk 0:01:02]} 31. Rxd1 {[%clk 0:01:09]}  Nd7 {[%clk 0:01:03]} 32. Ba3 {[%clk 0:01:04]}  Kf7 {[%clk 0:00:40]} 33. Nd6+ {[%clk 0:01:01]}  Kf6 {[%clk 0:00:40]} 34. Nf5 {[%clk 0:01:00]}  Bf8 {[%clk 0:00:36]} 35. Bxf8 {[%clk 0:00:57]}  Nxf8 {[%clk 0:00:31]} 36. Rd6 {[%clk 0:00:54]}  c5 {[%clk 0:00:24]} 37. Rc6 {[%clk 0:00:42]}  Rc8 {[%clk 0:00:23]} 38. Rxc8 {[%clk 0:00:33]}  Bxc8 {[%clk 0:00:24]} 39. Nd6 {[%clk 0:00:32]}  Bd7 {[%clk 0:00:21]} 40. Bc4 {[%clk 0:00:31]}  Ne6 {[%clk 0:00:20]} 41. Bxb3 {[%clk 0:00:30]}  Nc7 {[%clk 0:00:20]} 42. Bc4 {[%clk 0:00:27]}  Be6 {[%clk 0:00:20]} 43. Bxe6 {[%clk 0:00:18]}  Kxe6 {[%clk 0:00:21]} 44. Nc8 {[%clk 0:00:18]}  Nxa6 {[%clk 0:00:14]} 45. Nxa7 {[%clk 0:00:18]}  Nc7 {[%clk 0:00:14]} 46. Nc6 {[%clk 0:00:17]}  Kd6 {[%clk 0:00:14]} 47. Na5 {[%clk 0:00:17]}  Nb5 {[%clk 0:00:13]} 48. Nc4+ {[%clk 0:00:17]}  Ke6 {[%clk 0:00:13]} 49. Ke2 {[%clk 0:00:18]}  Nc7 {[%clk 0:00:13]} 50. Kd2 {[%clk 0:00:18]}  Nb5 {[%clk 0:00:13]} 51. Kc2 {[%clk 0:00:18]}  Nc7 {[%clk 0:00:14]} 52. Kb3 {[%clk 0:00:18]}  Ne8 {[%clk 0:00:13]} 53. Ka4 {[%clk 0:00:17]}  Nf6 {[%clk 0:00:13]} 54. Kb5 {[%clk 0:00:17]}  Nd7 {[%clk 0:00:10]} 55. Kc6 {[%clk 0:00:17]}  Nf8 {[%clk 0:00:10]} 56. Kxc5 {[%clk 0:00:17]}  Ng6 {[%clk 0:00:11]} 57. b4 {[%clk 0:00:16]}  Nh4 {[%clk 0:00:11]} 58. Nd2 {[%clk 0:00:17]}  Kd7 {[%clk 0:00:12]} 59. Kd5 {[%clk 0:00:17]}  Ng2 {[%clk 0:00:11]} 60. Kxe5 {[%clk 0:00:17]}  Ne3 {[%clk 0:00:12]} 61. b5 {[%clk 0:00:16]}  Nd1 {[%clk 0:00:12]} 62. c4 {[%clk 0:00:16]}  Ne3 {[%clk 0:00:12]} 63. Kf6 {[%clk 0:00:15]}  Kd6 {[%clk 0:00:12]} 64. e5+ {[%clk 0:00:13]}  Kc5 {[%clk 0:00:12]} 65. Kxg5 {[%clk 0:00:12]}  Nc2 {[%clk 0:00:11]} 66. Kxf4 {[%clk 0:00:12]}  Nd4 {[%clk 0:00:12]} 67. Ke4 {[%clk 0:00:12]}  Ne6 {[%clk 0:00:12]} 68. f4 {[%clk 0:00:13]}  Nc7 {[%clk 0:00:12]} 69. f5 {[%clk 0:00:13]}  Ne8 {[%clk 0:00:12]} 70. g5 {[%clk 0:00:13]}  Kb6 {[%clk 0:00:13]} 71. f6 {[%clk 0:00:13]}  Kc7 {[%clk 0:00:14]} 72. g6 {[%clk 0:00:14]}  Ng7 {[%clk 0:00:15]} 73. fxg7 {[%clk 0:00:14]}  Kd7 {[%clk 0:00:15]} 74. g8=Q {[%clk 0:00:15]}  Ke7 {[%clk 0:00:15]} 75. Qf7+ {[%clk 0:00:15]}  Kd8 {[%clk 0:00:16]} 76. g7 {[%clk 0:00:16]}  Kc8 {[%clk 0:00:15]} 77. g8=Q# {[%clk 0:00:17]} 1-0


[Site "https://www.chess.com"]

[Event "Titled Tuesday Blitz March 28 Early 2023"]
[White "Fernandez Garcia, Gumersindo"]
[Black "Raahul V S"]
[WhiteFideId "24516740"]
[BlackFideId "25035525"]
[WhiteElo "2093"]
[BlackElo "2168"]
[Result "0-1"]
[Round "08"]
[TimeControl "180+2"]
[Date "2023.03.28"]
[WhiteClock "0:00:05"]
[BlackClock "0:00:28"]

1. d4 {[%clk 0:03:00]}  d5 {[%clk 0:02:58]} 2. c4 {[%clk 0:03:00]}  c6 {[%clk 0:02:57]} 3. Nc3 {[%clk 0:02:59]}  Nf6 {[%clk 0:02:58]} 4. Nf3 {[%clk 0:02:58]}  e6 {[%clk 0:02:58]} 5. Bg5 {[%clk 0:02:56]}  dxc4 {[%clk 0:02:58]} 6. a4 {[%clk 0:02:53]}  b5 {[%clk 0:02:58]} 7. axb5 {[%clk 0:02:41]}  cxb5 {[%clk 0:02:58]} 8. Nxb5 {[%clk 0:02:24]}  Qb6 {[%clk 0:02:57]} 9. Nc3 {[%clk 0:02:11]}  Qxb2 {[%clk 0:02:57]} 10. Qc1 {[%clk 0:02:11]}  Qxc1+ {[%clk 0:02:49]} 11. Rxc1 {[%clk 0:02:11]}  Nd5 {[%clk 0:02:43]} 12. Bd2 {[%clk 0:02:04]}  Ba3 {[%clk 0:02:40]} 13. Rb1 {[%clk 0:01:59]}  Bb4 {[%clk 0:02:21]} 14. Nxd5 {[%clk 0:01:51]}  Bxd2+ {[%clk 0:02:20]} 15. Nxd2 {[%clk 0:01:47]}  exd5 {[%clk 0:02:21]} 16. e4 {[%clk 0:01:44]}  c3 {[%clk 0:02:21]} 17. Nf3 {[%clk 0:01:25]}  dxe4 {[%clk 0:02:20]} 18. Ne5 {[%clk 0:01:17]}  O-O {[%clk 0:02:19]} 19. Bc4 {[%clk 0:01:14]}  Nd7 {[%clk 0:02:17]} 20. Bd5 {[%clk 0:01:11]}  Rb8 {[%clk 0:01:47]} 21. Rxb8 {[%clk 0:00:56]}  Nxb8 {[%clk 0:01:48]} 22. Bxe4 {[%clk 0:00:56]}  Nd7 {[%clk 0:01:40]} 23. Kd1 {[%clk 0:00:37]}  Nf6 {[%clk 0:01:09]} 24. Bf3 {[%clk 0:00:35]}  Bf5 {[%clk 0:01:08]} 25. g4 {[%clk 0:00:27]}  Be4 {[%clk 0:01:08]} 26. Ke2 {[%clk 0:00:20]}  Rc8 {[%clk 0:01:01]} 27. Bxe4 {[%clk 0:00:20]}  Nxe4 {[%clk 0:01:00]} 28. Rc1 {[%clk 0:00:20]}  f6 {[%clk 0:00:59]} 29. Nd3 {[%clk 0:00:18]}  a5 {[%clk 0:00:54]} 30. f3 {[%clk 0:00:18]}  Nd6 {[%clk 0:00:52]} 31. Nc5 {[%clk 0:00:19]}  Nb5 {[%clk 0:00:52]} 32. Kd3 {[%clk 0:00:19]}  Rd8 {[%clk 0:00:52]} 33. Kc4 {[%clk 0:00:14]}  Nxd4 {[%clk 0:00:47]} 34. Rxc3 {[%clk 0:00:14]}  Nc6 {[%clk 0:00:41]} 35. Kb5 {[%clk 0:00:13]}  Rc8 {[%clk 0:00:40]} 36. Ra3 {[%clk 0:00:11]}  Nd4+ {[%clk 0:00:40]} 37. Kb6 {[%clk 0:00:11]}  Rc6+ {[%clk 0:00:39]} 38. Kxa5 {[%clk 0:00:06]}  Rxc5+ {[%clk 0:00:40]} 39. Kb4 {[%clk 0:00:07]}  Nc2+ {[%clk 0:00:34]} 40. Kxc5 {[%clk 0:00:06]}  Nxa3 {[%clk 0:00:35]} 41. Kd4 {[%clk 0:00:05]}  Kf7 {[%clk 0:00:34]} 42. f4 {[%clk 0:00:04]}  Ke6 {[%clk 0:00:34]} 43. h4 {[%clk 0:00:05]}  h5 {[%clk 0:00:33]} 44. gxh5 {[%clk 0:00:05]}  Kf5 {[%clk 0:00:33]} 45. Ke3 {[%clk 0:00:05]}  Kg4 {[%clk 0:00:33]} 46. Ke4 {[%clk 0:00:05]}  Nc4 {[%clk 0:00:30]} 47. h6 {[%clk 0:00:03]}  gxh6 {[%clk 0:00:30]} 48. Kd5 {[%clk 0:00:04]}  Ne3+ {[%clk 0:00:29]} 49. Ke6 {[%clk 0:00:05]}  f5 {[%clk 0:00:29]} 50. Ke5 {[%clk 0:00:05]}  Ng2 {[%clk 0:00:28]} 0-1


[Site "https://www.chess.com"]

[Event "Titled Tuesday Blitz March 28 Early 2023"]
[White "Priyanka Nutakki"]
[Black "Iljin, Timofey"]
[WhiteFideId "25049615"]
[BlackFideId "14110180"]
[WhiteElo "2256"]
[BlackElo "2397"]
[Result "1-0"]
[Round "08"]
[TimeControl "180+2"]
[Date "2023.03.28"]
[WhiteClock "0:00:53"]
[BlackClock "0:00:02"]

1. d4 {[%clk 0:03:00]}  f5 {[%clk 0:02:59]} 2. Nc3 {[%clk 0:02:56]}  Nf6 {[%clk 0:02:59]} 3. Bg5 {[%clk 0:02:56]}  d5 {[%clk 0:02:59]} 4. e3 {[%clk 0:02:55]}  c6 {[%clk 0:02:48]} 5. Nf3 {[%clk 0:02:53]}  e6 {[%clk 0:02:48]} 6. a3 {[%clk 0:02:52]}  h6 {[%clk 0:02:47]} 7. Bf4 {[%clk 0:02:52]}  Be7 {[%clk 0:02:41]} 8. Bd3 {[%clk 0:02:49]}  O-O {[%clk 0:02:41]} 9. h3 {[%clk 0:02:49]}  a5 {[%clk 0:02:37]} 10. Ne5 {[%clk 0:02:47]}  Nbd7 {[%clk 0:02:00]} 11. Ng6 {[%clk 0:02:46]}  Re8 {[%clk 0:01:59]} 12. g4 {[%clk 0:02:46]}  Nf8 {[%clk 0:01:50]} 13. Nxe7+ {[%clk 0:02:36]}  Qxe7 {[%clk 0:01:49]} 14. Rg1 {[%clk 0:02:36]}  Ng6 {[%clk 0:01:46]} 15. Bh2 {[%clk 0:02:32]}  Nh4 {[%clk 0:01:19]} 16. Na4 {[%clk 0:02:19]}  Ne4 {[%clk 0:01:12]} 17. Nb6 {[%clk 0:02:12]}  Rb8 {[%clk 0:01:09]} 18. Bxb8 {[%clk 0:02:11]}  Ng5 {[%clk 0:00:55]} 19. Be2 {[%clk 0:02:05]}  e5 {[%clk 0:00:52]} 20. Bxe5 {[%clk 0:02:03]}  c5 {[%clk 0:00:51]} 21. Nxd5 {[%clk 0:01:58]}  Qf7 {[%clk 0:00:52]} 22. Nf4 {[%clk 0:01:48]}  cxd4 {[%clk 0:00:48]} 23. Bxd4 {[%clk 0:01:45]}  b5 {[%clk 0:00:40]} 24. Kf1 {[%clk 0:01:42]}  Bb7 {[%clk 0:00:39]} 25. Rg3 {[%clk 0:01:37]}  Ba8 {[%clk 0:00:32]} 26. Bxb5 {[%clk 0:01:34]}  Re7 {[%clk 0:00:20]} 27. Qd3 {[%clk 0:01:29]}  Kh8 {[%clk 0:00:16]} 28. Bc4 {[%clk 0:01:27]}  Qe8 {[%clk 0:00:13]} 29. gxf5 {[%clk 0:01:26]}  Be4 {[%clk 0:00:07]} 30. Qc3 {[%clk 0:01:18]}  Rc7 {[%clk 0:00:07]} 31. Ne6 {[%clk 0:01:11]}  Nxe6 {[%clk 0:00:06]} 32. fxe6 {[%clk 0:01:11]}  Nf5 {[%clk 0:00:05]} 33. Rg4 {[%clk 0:01:04]}  Bd5 {[%clk 0:00:05]} 34. Bxd5 {[%clk 0:00:55]}  Qb5+ {[%clk 0:00:05]} 35. Qd3 {[%clk 0:00:54]}  Qxd5 {[%clk 0:00:06]} 36. Bxg7+ {[%clk 0:00:53]}  Rxg7 {[%clk 0:00:02]} 37. Qxd5 {[%clk 0:00:53]} 1-0


[Site "https://www.chess.com"]

[Event "Titled Tuesday Blitz March 28 Early 2023"]
[White "Belozerov, Andrei"]
[Black "Shubenkova, Veronika"]
[WhiteFideId "4120213"]
[BlackFideId "44124040"]
[WhiteElo "2360"]
[BlackElo "2027"]
[Result "1-0"]
[Round "08"]
[TimeControl "180+2"]
[Date "2023.03.28"]
[WhiteClock "0:00:15"]
[BlackClock "0:00:05"]

1. d4 {[%clk 0:03:00]}  d5 {[%clk 0:02:59]} 2. c4 {[%clk 0:02:59]}  e6 {[%clk 0:02:59]} 3. Nf3 {[%clk 0:02:59]}  Nf6 {[%clk 0:02:59]} 4. g3 {[%clk 0:02:59]}  Be7 {[%clk 0:02:59]} 5. Bg2 {[%clk 0:02:59]}  O-O {[%clk 0:02:59]} 6. O-O {[%clk 0:02:59]}  b6 {[%clk 0:02:59]} 7. cxd5 {[%clk 0:02:58]}  exd5 {[%clk 0:02:59]} 8. Nc3 {[%clk 0:02:58]}  Bb7 {[%clk 0:02:59]} 9. Ne5 {[%clk 0:02:58]}  Re8 {[%clk 0:02:59]} 10. Bf4 {[%clk 0:02:55]}  c6 {[%clk 0:02:59]} 11. Rc1 {[%clk 0:02:54]}  Nbd7 {[%clk 0:02:59]} 12. Qa4 {[%clk 0:02:52]}  Nxe5 {[%clk 0:02:58]} 13. Bxe5 {[%clk 0:02:46]}  Nd7 {[%clk 0:02:58]} 14. Bf4 {[%clk 0:02:45]}  a5 {[%clk 0:02:57]} 15. Rfd1 {[%clk 0:02:44]}  b5 {[%clk 0:02:57]} 16. Qc2 {[%clk 0:02:37]}  Nb6 {[%clk 0:02:57]} 17. e4 {[%clk 0:02:34]}  Qd7 {[%clk 0:02:47]} 18. exd5 {[%clk 0:02:32]}  cxd5 {[%clk 0:02:45]} 19. Bf1 {[%clk 0:02:09]}  Ba6 {[%clk 0:02:34]} 20. a4 {[%clk 0:02:01]}  b4 {[%clk 0:02:32]} 21. Nb5 {[%clk 0:02:00]}  Rec8 {[%clk 0:02:29]} 22. Qb3 {[%clk 0:01:51]}  Nc4 {[%clk 0:02:25]} 23. Rxc4 {[%clk 0:01:31]}  dxc4 {[%clk 0:02:21]} 24. Bxc4 {[%clk 0:01:32]}  Bf8 {[%clk 0:02:17]} 25. d5 {[%clk 0:01:30]}  Bxb5 {[%clk 0:02:03]} 26. Bxb5 {[%clk 0:01:28]}  Qg4 {[%clk 0:01:56]} 27. d6 {[%clk 0:01:25]}  Rd8 {[%clk 0:01:53]} 28. d7 {[%clk 0:01:11]}  Qf5 {[%clk 0:01:39]} 29. Bc7 {[%clk 0:00:56]}  Bc5 {[%clk 0:01:38]} 30. Rd2 {[%clk 0:00:48]}  g6 {[%clk 0:01:14]} 31. Kg2 {[%clk 0:00:46]}  h5 {[%clk 0:01:05]} 32. Qf3 {[%clk 0:00:42]}  Qxf3+ {[%clk 0:01:02]} 33. Kxf3 {[%clk 0:00:43]}  Be7 {[%clk 0:01:02]} 34. Re2 {[%clk 0:00:38]}  Kf8 {[%clk 0:01:00]} 35. Bxd8 {[%clk 0:00:36]}  Rxd8 {[%clk 0:00:58]} 36. Ke4 {[%clk 0:00:37]}  Rb8 {[%clk 0:00:41]} 37. Kd5 {[%clk 0:00:36]}  Rb6 {[%clk 0:00:26]} 38. d8=Q+ {[%clk 0:00:35]}  Bxd8 {[%clk 0:00:26]} 39. Re8+ {[%clk 0:00:35]}  Kg7 {[%clk 0:00:26]} 40. Rxd8 {[%clk 0:00:36]}  Rf6 {[%clk 0:00:26]} 41. f4 {[%clk 0:00:35]}  h4 {[%clk 0:00:24]} 42. Ra8 {[%clk 0:00:34]}  hxg3 {[%clk 0:00:23]} 43. hxg3 {[%clk 0:00:34]}  g5 {[%clk 0:00:23]} 44. Ke4 {[%clk 0:00:30]}  gxf4 {[%clk 0:00:23]} 45. gxf4 {[%clk 0:00:30]}  Re6+ {[%clk 0:00:23]} 46. Kf3 {[%clk 0:00:30]}  Rd6 {[%clk 0:00:22]} 47. Bc4 {[%clk 0:00:24]}  Rc6 {[%clk 0:00:20]} 48. b3 {[%clk 0:00:23]}  Rc5 {[%clk 0:00:20]} 49. Ra7 {[%clk 0:00:23]}  Kg6 {[%clk 0:00:20]} 50. Bxf7+ {[%clk 0:00:22]}  Kf6 {[%clk 0:00:21]} 51. Bc4 {[%clk 0:00:22]}  Rh5 {[%clk 0:00:16]} 52. Ra6+ {[%clk 0:00:20]}  Ke7 {[%clk 0:00:17]} 53. Ke4 {[%clk 0:00:21]}  Rh1 {[%clk 0:00:16]} 54. f5 {[%clk 0:00:19]}  Re1+ {[%clk 0:00:16]} 55. Kf4 {[%clk 0:00:19]}  Kf8 {[%clk 0:00:10]} 56. f6 {[%clk 0:00:19]}  Re8 {[%clk 0:00:08]} 57. Ra7 {[%clk 0:00:18]}  Rc8 {[%clk 0:00:06]} 58. Rh7 {[%clk 0:00:18]}  Rxc4+ {[%clk 0:00:03]} 59. bxc4 {[%clk 0:00:17]}  b3 {[%clk 0:00:03]} 60. Rb7 {[%clk 0:00:16]}  b2 {[%clk 0:00:02]} 61. Rxb2 {[%clk 0:00:15]}  Ke8 {[%clk 0:00:02]} 62. Ke5 {[%clk 0:00:15]}  Kd7 {[%clk 0:00:03]} 63. f7 {[%clk 0:00:15]}  Kc6 {[%clk 0:00:04]} 64. f8=Q {[%clk 0:00:14]}  Kc7 {[%clk 0:00:05]} 65. Qd6+ {[%clk 0:00:14]}  Kc8 {[%clk 0:00:05]} 66. Rb8# {[%clk 0:00:15]} 1-0


[Site "https://www.chess.com"]

[Event "Titled Tuesday Blitz March 28 Early 2023"]
[White "Shapiro, Viktor"]
[Black "Al-Tarboush, Ward"]
[WhiteFideId "4175700"]
[BlackFideId "7601450"]
[WhiteElo "2152"]
[BlackElo "2257"]
[Result "1-0"]
[Round "08"]
[TimeControl "180+2"]
[Date "2023.03.28"]
[WhiteClock "0:00:20"]
[BlackClock "0:00:03"]

1. c4 {[%clk 0:03:00]}  c5 {[%clk 0:02:54]} 2. Nc3 {[%clk 0:03:00]}  Nc6 {[%clk 0:02:53]} 3. g3 {[%clk 0:03:01]}  g6 {[%clk 0:02:49]} 4. Bg2 {[%clk 0:03:01]}  Bg7 {[%clk 0:02:49]} 5. Nf3 {[%clk 0:03:01]}  Nh6 {[%clk 0:02:49]} 6. O-O {[%clk 0:03:01]}  Nf5 {[%clk 0:02:49]} 7. d3 {[%clk 0:03:00]}  O-O {[%clk 0:02:44]} 8. a3 {[%clk 0:02:58]}  a6 {[%clk 0:02:43]} 9. Rb1 {[%clk 0:02:58]}  Rb8 {[%clk 0:02:42]} 10. Bd2 {[%clk 0:02:58]}  b5 {[%clk 0:02:41]} 11. cxb5 {[%clk 0:02:58]}  axb5 {[%clk 0:02:42]} 12. b4 {[%clk 0:02:59]}  cxb4 {[%clk 0:02:40]} 13. axb4 {[%clk 0:02:59]}  d5 {[%clk 0:02:40]} 14. h4 {[%clk 0:02:40]}  h5 {[%clk 0:02:13]} 15. Ng5 {[%clk 0:02:25]}  e6 {[%clk 0:02:06]} 16. e4 {[%clk 0:02:20]}  dxe4 {[%clk 0:02:04]} 17. dxe4 {[%clk 0:02:20]}  Nfd4 {[%clk 0:02:04]} 18. Be3 {[%clk 0:02:18]}  Bb7 {[%clk 0:01:55]} 19. Ne2 {[%clk 0:02:14]}  e5 {[%clk 0:01:50]} 20. Nc3 {[%clk 0:02:12]}  f6 {[%clk 0:01:42]} 21. Nf3 {[%clk 0:02:04]}  Nxf3+ {[%clk 0:01:42]} 22. Bxf3 {[%clk 0:02:04]}  Nd4 {[%clk 0:01:42]} 23. Bxd4 {[%clk 0:01:57]}  exd4 {[%clk 0:01:33]} 24. Nd5 {[%clk 0:01:57]}  Bxd5 {[%clk 0:01:33]} 25. exd5 {[%clk 0:01:57]}  f5 {[%clk 0:01:31]} 26. Re1 {[%clk 0:01:57]}  f4 {[%clk 0:01:23]} 27. Re6 {[%clk 0:01:44]}  fxg3 {[%clk 0:01:21]} 28. fxg3 {[%clk 0:01:44]}  Rb6 {[%clk 0:01:15]} 29. Qe2 {[%clk 0:01:33]}  Rxe6 {[%clk 0:01:14]} 30. Qxe6+ {[%clk 0:01:33]}  Kh8 {[%clk 0:01:10]} 31. Rb3 {[%clk 0:01:30]}  Qc7 {[%clk 0:01:09]} 32. Qxg6 {[%clk 0:01:19]}  Qc1+ {[%clk 0:01:05]} 33. Kg2 {[%clk 0:01:18]}  Qd2+ {[%clk 0:00:54]} 34. Kh3 {[%clk 0:01:18]}  Qe1 {[%clk 0:00:46]} 35. Qxh5+ {[%clk 0:01:12]}  Kg8 {[%clk 0:00:45]} 36. d6 {[%clk 0:01:03]}  Qe6+ {[%clk 0:00:45]} 37. Kg2 {[%clk 0:00:59]}  Rf5 {[%clk 0:00:46]} 38. Qg4 {[%clk 0:00:55]}  Qf7 {[%clk 0:00:35]} 39. Ra3 {[%clk 0:00:49]}  Kh8 {[%clk 0:00:21]} 40. Ra8+ {[%clk 0:00:46]}  Bf8 {[%clk 0:00:22]} 41. Qxd4+ {[%clk 0:00:42]}  Kg8 {[%clk 0:00:18]} 42. Qg4+ {[%clk 0:00:40]}  Kh8 {[%clk 0:00:19]} 43. Qd4+ {[%clk 0:00:29]}  Kg8 {[%clk 0:00:18]} 44. Ra7 {[%clk 0:00:29]}  Qe6 {[%clk 0:00:16]} 45. Qg4+ {[%clk 0:00:27]}  Kh8 {[%clk 0:00:16]} 46. d7 {[%clk 0:00:24]}  Be7 {[%clk 0:00:03]} 47. Ra8+ {[%clk 0:00:23]}  Kh7 {[%clk 0:00:03]} 48. Be4 {[%clk 0:00:20]} 1-0


[Site "https://www.chess.com"]